fUSD/lending_fUSD_20260202
["ID","MTS","AMOUNT","RATE_DAILY","PERIOD"]
[404294900,1770041448602,-839.0,0.0001672,2]
[404294901,1770041448611,-163.0,0.0001672,2]
[404294902,1770041448620,-163.0,0.0001672,2]
[404294903,1770041448630,-163.0,0.0001672,2]
[404294904,1770041448639,-163.0,0.0001672,2]
[404294905,1770041448648,-163.0,0.0001672,2]
[404294906,1770041448658,-233.51889341,0.00016762,2]
[404294907,1770041448668,-868.9,0.00016788,2]
[404294908,1770041448677,-159.92623365,0.00016813,2]
[404294909,1770041448686,-242.15909246,0.00016817,2]
[404294910,1770041448695,-412.15,0.00016828,2]
[404294911,1770041448705,-383.37,0.00016843,2]
[404294912,1770041448714,-163.0,0.00016855,2]
[404294913,1770041448723,-839.0,0.0001687,2]
[404294914,1770041448734,-251.11897888,0.00016872,2]
[404294915,1770041448743,-3260.44,0.00016907,2]
[404294916,1770041448751,-260.4103811,0.00016927,2]
[404294917,1770041448760,-270.0455652,0.00016982,2]
[404294918,1770041448769,-295.08,0.00016982,2]
[404294919,1770041448779,-150.0,0.00016986,2]
[404294920,1770041448788,-300.0,0.00017,2]
[404294921,1770041448798,-779.65372,0.00017,2]
[404294922,1770041448808,-280.03725112,0.00017037,2]
[404294923,1770041448817,-163.0,0.0001704,2]
[404294924,1770041448826,-233.61,0.00017062,2]
[404294925,1770041448835,-1000.0,0.00017063,2]
[404294926,1770041448845,-614.3,0.00017089,2]
[404294927,1770041448854,-614.3,0.00017089,2]
[404294928,1770041448863,-290.39862941,0.00017092,2]
[404294929,1770041448873,-500.0,0.00017096,2]
[404294930,1770041448884,-2128.18837233,0.00017116,2]
[404294931,1770041448894,-2000.0,0.00017116,2]
[404294932,1770041448906,-2000.0,0.00017116,2]
[404294933,1770041448915,-1643.18674336,0.00017116,2]
[404294934,1770041448924,-1974.64879752,0.00017116,2]
[404294935,1770041448934,-2000.0,0.00017116,2]
[404294936,1770041448944,-2000.0,0.00017116,2]
[404294937,1770041448953,-815.28060531,0.00017116,2]
[404294938,1770041448963,-2000.0,0.00017116,2]
[404294939,1770041448972,-1508.230722,0.00017116,2]
[404294940,1770041448982,-1506.20015718,0.00017116,2]
[404294941,1770041448991,-1689.68040771,0.00017116,2]
[404294942,1770041449000,-2000.0,0.00017116,2]
[404294943,1770041449010,-2000.0,0.00017116,2]
[404294944,1770041449019,-2000.0,0.00017116,2]
[404294945,1770041449028,-2000.0,0.00017116,2]
[404294946,1770041449038,-26483.7765009,0.00017122,2]
[404294947,1770041449047,-111903.2479645,0.0001713,2]
[404294948,1770041449056,-500.0,0.00017139,2]
[404294949,1770041449065,-151.49674582,0.00017145,2]
[404294950,1770041449074,-217.15233878,0.00017145,2]
[404294951,1770041449083,-217.15233878,0.00017145,2]
[404294952,1770041449091,-181.08010149,0.00017145,2]
[404294953,1770041449100,-1481.23780761,0.00017145,2]
[404294954,1770041449109,-891.61887448,0.00017145,2]
[404294955,1770041449118,-168.90333538,0.00017145,2]
[404294956,1770041449127,-301.1433787,0.00017147,2]
[404294957,1770041449136,-163.0,0.00017175,2]
[404294958,1770041449145,-20104.20520642,0.00017191,2]
[404294959,1770041449157,-1899.6725397,0.00017191,2]
[404294960,1770041449166,-1500.0,0.000172,2]
[404294961,1770041449175,-172.53,0.00017217,2]
[404294962,1770041449184,-172.53,0.00017217,2]
[404294963,1770041449193,-172.53,0.00017217,2]
[404294964,1770041449202,-1000.0,0.0001726,2]
[404294965,1770041449211,-1000.0,0.00017275,2]
[404294966,1770041449220,-5888.0,0.00017285,2]
[404294967,1770041449229,-242.83565079,0.00017289,2]
[404294968,1770041449239,-151.0,0.00017357,2]
[404294969,1770041449248,-839.0,0.0001736,2]
[404294970,1770041449257,-839.0,0.0001736,2]
[404294971,1770041449266,-1666.0,0.0001736,2]
[404294972,1770041449275,-839.0,0.0001736,2]
[404294973,1770041449283,-159.92623365,0.00017374,2]
[404294974,1770041449293,-332.57,0.00017392,2]
[404294975,1770041449302,-1500.0,0.000174,2]
[404294976,1770041449312,-1205.0,0.00017478,2]
[404294977,1770041449324,-929.792,0.00017478,2]
[404294978,1770041449333,-2452.841,0.00017478,2]
[404294979,1770041449342,-568.0,0.00017478,2]
[404294980,1770041449351,-6579.0,0.00017478,2]
[404294981,1770041449362,-10091.57601831,0.00017527,2]
[404294982,1770041449371,-1000.0,0.00017534,2]
[404294983,1770041449380,-188.42784669,0.00017534,2]
[404294984,1770041449389,-4609.0,0.00017541,2]
[404294985,1770041449399,-5888.0,0.00017559,2]
[404294986,1770041449409,-2307.14267202,0.00017571,2]
[404294987,1770041449418,-3425.04822123,0.0001764,2]
[404294988,1770041449427,-366.36,0.00017652,2]
[404294989,1770041449436,-1447.23523297,0.00017664,2]
[404294990,1770041449445,-1136.8475123,0.00017664,2]
[404294991,1770041449455,-488.36339388,0.00017664,2]
[404294992,1770041449464,-256.98671009,0.00017664,2]
[404294993,1770041449473,-2002.53462592,0.00017664,2]
[404294994,1770041449483,-2244.84722854,0.00017664,2]
[404294995,1770041449492,-2504.86417643,0.00017664,2]
[404294996,1770041449501,-1716.63993214,0.00017664,2]
[404294997,1770041449510,-1502.03881526,0.00017664,2]
[404294998,1770041449519,-26483.7765009,0.0001767,2]
[404294999,1770041449528,-2835.0,0.0001768,2]
[404295000,1770041449537,-163.0,0.0001768,2]
[404295001,1770041449546,-163.0,0.0001768,2]
[404295002,1770041449555,-163.0,0.0001768,2]
[404295003,1770041449564,-163.0,0.0001768,2]
[404295004,1770041449573,-163.0,0.0001768,2]
[404295005,1770041449582,-1000.0,0.00017686,2]
[404295006,1770041449591,-225.18697532,0.00017693,2]
[404295007,1770041449600,-225.18697532,0.00017693,2]
[404295008,1770041449609,-187.78006525,0.00017693,2]
[404295009,1770041449618,-1536.04360649,0.00017693,2]
[404295010,1770041449627,-924.60877284,0.00017693,2]
[404295011,1770041449635,-366.36,0.00017704,2]
[404295012,1770041449644,-25000.0,0.00017733,3]
[404295013,1770041449654,-25000.0,0.00017742,3]
[404295014,1770041449663,-218.72260264,0.00017743,2]
[404295015,1770041449672,-5888.0,0.00017747,2]
[404295016,1770041449681,-25000.0,0.0001775,3]
[404295017,1770041449691,-366.36,0.00017756,2]
[404295018,1770041449700,-25000.0,0.00017759,3]
[404295019,1770041449709,-388.0,0.00017763,2]
[404295020,1770041449718,-25000.0,0.00017768,3]
[404295021,1770041449727,-40159.66716164,0.0001777,2]
[404295022,1770041449736,-54337.4568,0.0001777,2]
[404295023,1770041449746,-5888.0,0.00017773,2]
[404295024,1770041449755,-25000.0,0.00017777,3]
[404295025,1770041449764,-25000.0,0.00017786,3]
[404295026,1770041449774,-25000.0,0.00017794,3]
[404295027,1770041449783,-1500.0,0.000178,2]
[404295028,1770041449792,-25000.0,0.00017803,3]
[404295029,1770041449802,-386.0,0.00017808,2]
[404295030,1770041449948,-500.0,0.00017808,2]
[404295031,1770041449985,-274.0,0.00017808,2]
[404295032,1770041449995,-1000.0,0.00017808,2]
[404295033,1770041450007,-25000.0,0.00017812,3]
[404295034,1770041450018,-388.0,0.00017815,2]
[404295035,1770041450028,-386.0,0.00017816,2]
[404295036,1770041450037,-2000.0,0.0001782,2]
[404295037,1770041450048,-2000.0,0.0001782,2]
[404295038,1770041450058,-25000.0,0.00017821,3]
[404295039,1770041450068,-25000.0,0.0001783,3]
[404295040,1770041450078,-38230.0690539,0.0001783,2]
[404295041,1770041450088,-163.0,0.0001783,2]
[404295042,1770041450098,-163.0,0.0001783,2]
[404295043,1770041450108,-388.0,0.00017833,2]
[404295044,1770041450118,-25000.0,0.00017838,3]
[404295045,1770041450128,-25000.0,0.00017847,3]
[404295046,1770041450137,-386.0,0.00017849,2]
[404295047,1770041450147,-200.0,0.00017855,2]
[404295048,1770041450160,-200.0,0.00017856,2]
[404295049,1770041450169,-25000.0,0.00017856,3]
[404295050,1770041450179,-200.0,0.00017856,2]
[404295051,1770041450191,-200.0,0.00017856,2]
[404295052,1770041450200,-24722.8532617,0.00017862,2]
[404295053,1770041450211,-500.0,0.00017863,2]
[404295054,1770041450220,-25000.0,0.00017865,3]
[404295055,1770041450229,-3879.1379675,0.00017867,2]
[404295056,1770041450239,-392.7246966,0.00017867,2]
[404295057,1770041450248,-25000.0,0.00017874,3]
[404295058,1770041450258,-388.0,0.00017881,2]
[404295059,1770041450268,-25000.0,0.00017882,3]
[404295060,1770041450278,-200.009499,0.00017891,2]
[404295061,1770041450287,-25000.0,0.00017891,3]
[404295062,1770041450297,-25000.0,0.000179,3]
[404295063,1770041450307,-781.37908532,0.000179,2]
[404295064,1770041450318,-708.12663749,0.000179,2]
[404295065,1770041450328,-480.55721143,0.000179,2]
[404295066,1770041450338,-5612.54307386,0.000179,2]
[404295067,1770041450349,-17205.90121961,0.000179,3]
[404295068,1770041450360,-500.0,0.00017918,2]
[404295069,1770041450369,-386.0,0.0001793,2]
[404295070,1770041450379,-388.0,0.00017932,2]
[404295071,1770041450388,-159.92623365,0.00017934,2]
[404295072,1770041450397,-388.0,0.00017939,2]
[404295073,1770041450412,-274.76,0.00017959,2]
[404295074,1770041450421,-334.5472959,0.00017966,2]
[404295075,1770041450431,-505.94629065,0.0001797,2]
[404295076,1770041450440,-500.0,0.0001797,2]
[404295077,1770041450449,-500.0,0.0001797,2]
[404295078,1770041450459,-500.0,0.0001797,2]
[404295079,1770041450468,-500.0,0.00017972,2]
[404295080,1770041450478,-500.0,0.00017982,2]
[404295081,1770041450487,-388.0,0.00017985,2]
[404295082,1770041450496,-151.0,0.00017986,2]
[404295083,1770041450507,-151.0,0.00017986,2]
[404295084,1770041450516,-154.05333475,0.00017986,2]
[404295085,1770041450526,-196.72,0.00017988,2]
[404295086,1770041450535,-829.81196401,0.0001799,2]
[404295087,1770041450544,-5800.0,0.00017992,2]
[404295088,1770041450554,-161.21910117,0.00017997,2]
[404295089,1770041450563,-150.0,0.00017999,2]
[404295090,1770041450574,-178.56020259,0.00017999,2]
[404295091,1770041450585,-155.0,0.00017999,2]
[404295092,1770041450595,-300.0,0.00017999,2]
[404295093,1770041450605,-300.0,0.00017999,2]
[404295094,1770041450615,-370.87018135,0.00017999,2]
[404295095,1770041450627,-300.0,0.00017999,2]
[404295096,1770041450637,-300.0,0.00017999,2]
[404295097,1770041450647,-300.0,0.00017999,2]
[404295098,1770041450661,-300.0,0.00017999,2]
[404295099,1770041450671,-300.0,0.00017999,2]
[404295100,1770041450681,-274.76,0.00018,2]
[404295101,1770041450690,-3306985.78558005,0.00018,2]
[404295102,1770041450951,-2639899.62681019,0.00018,2]
[404295103,1770041450961,-3444344.68283864,0.00018,2]
[404295104,1770041450970,-813.94526043,0.00018,2]
[404295105,1770041450979,-1191.99317303,0.00018,2]
[404295106,1770041450988,-150.0,0.00018,7]
[404295107,1770041450998,-1000.0,0.00018,2]
[404295108,1770041451007,-1000.0,0.00018,2]
[404295109,1770041451016,-1000.0,0.00018,2]
[404295110,1770041451025,-1000.0,0.00018,2]
[404295111,1770041451035,-1000.0,0.00018,2]
[404295112,1770041451044,-1000.0,0.00018,2]
[404295113,1770041451053,-1000.0,0.00018,2]
[404295114,1770041451062,-1116.44,0.00018,2]
[404295115,1770041451072,-5800.0,0.00018,2]
[404295116,1770041451081,-150.0,0.00018,2]
[404295117,1770041451090,-173.79954991,0.00018,2]
[404295118,1770041451099,-308.0160656,0.00018,2]
[404295119,1770041451108,-2348.91140711,0.00018,2]
[404295120,1770041451118,-150.0,0.00018,2]
[404295121,1770041451128,-456.03157398,0.00018,2]
[404295122,1770041451137,-388.0,0.00018,2]
[404295123,1770041451146,-885320.0844782,0.00018,2]
[404295124,1770041451157,-190704.12101792,0.00018,2]
[404295125,1770041451203,-2983.78666836,0.00018,2]
[404295126,1770041451522,-302.0,0.00018,2]
[404295127,1770041451601,-326.53513903,0.00018,2]
[404295128,1770041451615,-300.06000001,0.00018,2]
[404295129,1770041451637,-310.36207765,0.00018,2]
[404295132,1770041582023,-196.73247814,0.00011835,2]
[404295133,1770041597787,162.37656471,0.00011835,2]
[404295134,1770041629424,-558.7281508,0.00011835,2]
[404295135,1770041709380,-1734.25104929,0.00011811,2]
[404295136,1770041709421,-5000.01,0.00011811,2]
[404295137,1770041715091,-1219.79395071,0.00011811,2]
[404295138,1770041715119,-1200.0,0.00011834,2]
[404295139,1770041715166,-160.42209858,0.00011835,2]
[404295140,1770041715220,-39.70414534,0.00011835,2]
[404295141,1770041715248,-1339.94493804,0.00011835,2]
[404295142,1770041749516,-372.48543386,0.00011835,2]
[404295143,1770041794852,-196.73247814,0.00011835,2]
[404295144,1770041856899,-732.21559852,0.00011835,2]
[404295145,1770041886075,-248.32362258,0.00011835,2]
[404295146,1770041995720,-477.25053348,0.00011835,2]
[404295147,1770042009858,165.54908172,0.00011835,2]
[404295148,1770042025902,-4834.46091828,0.00011835,2]
[404295149,1770042026114,-5000.01,0.00011835,2]
[404295150,1770042026258,-5000.01,0.00011835,2]
[404295151,1770042026409,-5000.01,0.00011835,2]
[404295152,1770042037917,-824.66376041,0.00011835,2]
[404295153,1770042037941,-3350.68247918,0.00011835,2]
[404295155,1770042162014,-5000.01,0.0001181,2]
[404295156,1770042162231,-5000.01,0.0001181,2]
[404295157,1770042162349,-5000.01,0.0001181,2]
[404295158,1770042162476,-5000.01,0.0001181,2]
[404295159,1770042170955,-5000.01,0.0001181,2]
[404295160,1770042171065,-5000.01,0.0001181,2]
[404295161,1770042171182,-5000.01,0.0001181,2]
[404295162,1770042171358,-5000.01,0.0001181,2]
[404295163,1770042281667,500.0,0.00011403,2]
[404295165,1770042323176,6174.54702448,0.000201,30]
[404295166,1770042340843,61276.41834899,0.0002,30]
[404295167,1770042351326,534.62208688,0.0001075,30]
[404295169,1770042374803,216772.45728182,0.000209,30]
[404295173,1770042438348,-200.12624391,0.0001171,2]
[404295174,1770042438368,-417.59421676,0.0001171,2]
[404295175,1770042438389,-417.59421676,0.0001171,2]
[404295176,1770042468384,-1200.0,0.00011808,2]
[404295177,1770042468405,-300.0,0.00011808,2]
[404295178,1770042468426,-500.0,0.00011808,2]
[404295179,1770042468446,-265.93993208,0.00011809,2]
[404295180,1770042468466,-159.04878409,0.00011809,2]
[404295181,1770042468487,-474.12299988,0.00011809,2]
[404295182,1770042468507,-235.06440185,0.00011809,2]
[404295183,1770042468531,-500.0,0.00011809,2]
[404295184,1770042468551,-218.15633909,0.00011809,2]
[404295185,1770042468576,-500.0,0.00011809,2]
[404295186,1770042468601,-500.0,0.00011809,2]
[404295187,1770042468626,-500.0,0.00011809,2]
[404295188,1770042468652,-500.0,0.00011809,2]
[404295189,1770042468676,-500.0,0.00011809,2]
[404295190,1770042468701,-500.0,0.00011809,2]
[404295191,1770042468727,-500.0,0.00011809,2]
[404295192,1770042468751,-578.2179503,0.00011809,2]
[404295193,1770042468775,-500.0,0.00011809,2]
[404295194,1770042468800,-500.0,0.00011809,2]
[404295195,1770042468824,-500.0,0.00011809,2]
[404295196,1770042468849,-500.0,0.00011809,2]
[404295197,1770042468875,-500.0,0.00011809,2]
[404295198,1770042468899,-500.0,0.00011809,2]
[404295199,1770042468927,-500.0,0.00011809,2]
[404295200,1770042468951,-500.0,0.00011809,2]
[404295201,1770042468976,-500.0,0.00011809,2]
[404295202,1770042469000,-500.0,0.00011809,2]
[404295203,1770042469025,-500.0,0.00011809,2]
[404295204,1770042469049,-500.0,0.00011809,2]
[404295205,1770042469073,-500.0,0.00011809,2]
[404295206,1770042469099,-500.0,0.00011809,2]
[404295207,1770042469123,-500.0,0.00011809,2]
[404295208,1770042469147,-234.44959271,0.00011809,2]
[404295210,1770042501100,261.55091438,0.00014,30]
[404295211,1770042507397,1616.07372069,0.00015,30]
[404295212,1770042543415,-2445.35548048,0.0001171,2]
[404295213,1770042549366,-109.29903904,0.0001171,2]
[404295214,1770042549423,-4390.71096096,0.0001171,2]
[404295215,1770042555379,-5000.01,0.0001171,2]
[404295237,1770042620304,151.0,0.000209,30]
[404295238,1770042622086,167.0,0.000209,30]
[404295239,1770042622833,166.01782935,0.000209,30]
[404295240,1770042625110,151.0,0.000209,30]
[404295241,1770042625902,151.0,0.000209,30]
[404295242,1770042626830,151.0,0.000209,30]
[404295243,1770042627610,157.47759902,0.000209,30]
[404295253,1770042631789,-300.0,0.00011709,2]
[404295254,1770042631800,-431.38855193,0.00011709,2]
[404295255,1770042631813,-547.77308168,0.00011709,2]
[404295270,1770042635245,-495.24963351,0.0001161,2]
[404295275,1770042637572,-220.83836639,0.00011709,2]
[404295276,1770042637588,-300.0,0.00011709,2]
[404295277,1770042637607,-150.0,0.00011709,2]
[404295278,1770042637625,-300.0,0.00011709,2]
[404295279,1770042637636,-995.57318073,0.0001171,2]
[404295286,1770042639715,-237397.28621439,0.0001171,2]
[404295287,1770042639726,-178913.94884951,0.0001171,2]
[404295288,1770042639844,-21054.5566261,0.0001171,2]
[404295289,1770042639855,-4348.12435315,0.0001171,2]
[404295290,1770042639866,-224560.28967612,0.0001171,2]
[404295291,1770042639876,-12218.13248115,0.0001171,2]
[404295292,1770042639885,-246.0,0.0001171,2]
[404295293,1770042639895,-200.0,0.00011761,2]
[404295294,1770042639905,-500.0,0.00011782,2]
[404295295,1770042639914,-150.0,0.00011782,2]
[404295296,1770042639923,-235.57166321,0.000118,2]
[404295297,1770042639932,-265.55040729,0.00011809,2]
[404295298,1770042639942,-500.0,0.00011809,2]
[404295299,1770042639951,-500.0,0.00011809,2]
[404295300,1770042639960,-500.0,0.00011809,2]
[404295301,1770042639970,-500.0,0.00011809,2]
[404295303,1770042639979,-500.0,0.00011809,2]
[404295304,1770042639994,-500.0,0.00011809,2]
[404295305,1770042640003,-500.0,0.00011809,2]
[404295306,1770042640013,-500.0,0.00011809,2]
[404295307,1770042640022,-164.54508129,0.00011809,2]
[404295308,1770042640031,-500.0,0.00011809,2]
[404295309,1770042640041,-500.0,0.00011809,2]
[404295310,1770042640050,-500.0,0.00011809,2]
[404295311,1770042640059,-500.0,0.00011809,2]
[404295312,1770042640068,-500.0,0.00011809,2]
[404295313,1770042640077,-500.0,0.00011809,2]
[404295314,1770042640087,-500.0,0.00011809,2]
[404295315,1770042640096,-500.0,0.00011809,2]
[404295316,1770042640105,-500.0,0.00011809,2]
[404295317,1770042640114,-500.0,0.00011809,2]
[404295318,1770042640123,-500.0,0.00011809,2]
[404295319,1770042640132,-414.24643892,0.00011809,2]
[404295320,1770042640141,-500.0,0.00011809,2]
[404295321,1770042640151,-500.0,0.00011809,2]
[404295322,1770042640160,-500.0,0.00011809,2]
[404295323,1770042640170,-350.0,0.00011809,2]
[404295324,1770042640179,-500.0,0.00011809,2]
[404295325,1770042640188,-500.0,0.00011809,2]
[404295326,1770042640197,-500.0,0.00011809,2]
[404295327,1770042640206,-186.15795245,0.00011809,2]
[404295328,1770042640215,-380.74601133,0.00011809,2]
[404295329,1770042640225,-364.58912045,0.00011809,2]
[404295330,1770042640234,-500.0,0.00011809,2]
[404295331,1770042640248,-500.0,0.00011809,2]
[404295332,1770042640257,-500.0,0.00011809,2]
[404295333,1770042640266,-336.46333499,0.00011809,2]
[404295334,1770042640276,-500.0,0.00011809,2]
[404295335,1770042640285,-3459999.92,0.0001181,2]
[404295336,1770042640294,-10000.0,0.00011811,2]
[404295337,1770042640303,-500.0,0.00011811,2]
[404295338,1770042640313,-2500.0,0.00011811,2]
[404295339,1770042640322,-882.7156761,0.00011816,2]
[404295340,1770042640331,-500.0,0.00011837,2]
[404295341,1770042640340,-7908.95,0.00011861,2]
[404295342,1770042640349,-9999.99,0.00011861,2]
[404295343,1770042640359,-299.99,0.00011882,2]
[404295344,1770042640368,-150.99,0.00011882,2]
[404295345,1770042640377,-1470.33,0.00011882,2]
[404295346,1770042640386,-9999.99,0.00011882,2]
[404295347,1770042640395,-500.0,0.00011892,2]
[404295348,1770042640404,-151.5908,0.000119,2]
[404295349,1770042640414,-433.69,0.000119,2]
[404295350,1770042640423,-202.25964161,0.00011904,2]
[404295351,1770042640431,-151.0,0.00011904,2]
[404295352,1770042640440,-500.0,0.00011904,2]
[404295353,1770042640450,-151.0,0.00011904,2]
[404295354,1770042640459,-500.0,0.00011904,2]
[404295355,1770042640468,-151.0,0.00011904,2]
[404295356,1770042640477,-500.0,0.00011904,2]
[404295357,1770042640490,-151.0,0.00011904,2]
[404295358,1770042640499,-500.0,0.00011904,2]
[404295360,1770042640508,-151.0,0.00011904,2]
[404295361,1770042640518,-500.0,0.00011904,2]
[404295362,1770042640527,-151.0,0.00011904,2]
[404295363,1770042640536,-500.0,0.00011904,2]
[404295364,1770042640545,-151.0,0.00011904,2]
[404295365,1770042640555,-500.0,0.00011904,2]
[404295366,1770042640566,-151.0,0.00011904,2]
[404295367,1770042640576,-500.0,0.00011904,2]
[404295368,1770042640585,-500.0,0.00011904,2]
[404295369,1770042640594,-151.0,0.00011904,2]
[404295370,1770042640604,-500.0,0.00011904,2]
[404295372,1770042640617,-151.0,0.00011904,2]
[404295374,1770042640626,-500.0,0.00011904,2]
[404295375,1770042640635,-151.0,0.00011904,2]
[404295376,1770042640644,-500.0,0.00011904,2]
[404295377,1770042640653,-500.0,0.00011904,2]
[404295378,1770042640662,-500.0,0.00011904,2]
[404295379,1770042640672,-500.0,0.00011904,2]
[404295380,1770042640681,-500.0,0.00011904,2]
[404295381,1770042640693,-500.0,0.00011904,2]
[404295382,1770042640702,-500.0,0.00011904,2]
[404295383,1770042640715,-500.0,0.00011904,2]
[404295384,1770042640724,-500.0,0.00011904,2]
[404295385,1770042640734,-500.0,0.00011904,2]
[404295386,1770042640750,-500.0,0.00011904,2]
[404295387,1770042640760,-500.0,0.00011904,2]
[404295388,1770042640769,-157.224,0.00011909,2]
[404295389,1770042640780,-2930.319,0.00011909,2]
[404295390,1770042640789,-179.0248995,0.00011909,2]
[404295391,1770042640798,-6429.14,0.00011935,2]
[404295392,1770042640807,-500.0,0.00011946,2]
[404295393,1770042640816,-600.0,0.00012001,2]
[404295394,1770042640826,-52351.12,0.00012055,2]
[404295395,1770042640835,-2554.65451949,0.00012398,2]
[404295396,1770042640844,-21608.85344204,0.00012398,2]
[404295397,1770042640853,-500.0,0.00012452,2]
[404295398,1770042640862,-3009.87,0.00012586,2]
[404295399,1770042640871,-1313.0,0.00012672,2]
[404295400,1770042640880,-484.67234514,0.00012688,2]
[404295401,1770042640889,-1364.0,0.00012698,2]
[404295402,1770042640898,-1000.0,0.00012714,2]
[404295403,1770042640907,-150.0,0.00012774,2]
[404295404,1770042640917,-420.0,0.00012857,2]
[404295405,1770042640927,-300.0,0.00012857,2]
[404295406,1770042640936,-1680.0,0.00012879,2]
[404295407,1770042640946,-300.0,0.0001288,2]
[404295408,1770042640955,-210.67863296,0.00012881,2]
[404295409,1770042640964,-500.0,0.00012881,2]
[404295410,1770042640973,-250.0,0.00012881,2]
[404295411,1770042640983,-277.68237912,0.00012881,2]
[404295412,1770042640995,-19999.99,0.00012893,2]
[404295413,1770042641004,-250.0,0.00012989,2]
[404295414,1770042641014,-507.10580581,0.00013,2]
[404295415,1770042641023,-2554.65451949,0.00013086,2]
[404295416,1770042641032,-21608.85344204,0.00013086,2]
[404295417,1770042641042,-500.0,0.00013397,2]
[404295418,1770042641051,-500.0,0.00013698,2]
[404295419,1770042641061,-500.0,0.00013698,2]
[404295420,1770042641070,-500.0,0.00013698,2]
[404295421,1770042641080,-502.06664745,0.00013698,2]
[404295422,1770042641089,-200.0,0.00013699,2]
[404295423,1770042641099,-2554.65451949,0.00013773,2]
[404295424,1770042641108,-21608.85344204,0.00013773,2]
[404295425,1770042641117,-195.0,0.00013781,2]
[404295426,1770042641127,-173.81884184,0.00013973,2]
[404295427,1770042641136,-500.0,0.00013973,2]
[404295428,1770042641146,-500.0,0.00013973,2]
[404295429,1770042641155,-500.0,0.00013973,2]
[404295430,1770042641165,-500.0,0.00013973,2]
[404295431,1770042641174,-513.5746578,0.00013973,2]
[404295432,1770042641183,-163.90719075,0.00013973,2]
[404295433,1770042641192,-200.896366,0.00014,2]
[404295434,1770042641202,-587.0,0.00014119,2]
[404295435,1770042641211,-624.0,0.00014137,2]
[404295436,1770042641221,-2351.0,0.00014167,2]
[404295437,1770042641235,-151.0,0.00014196,2]
[404295438,1770042641246,-151.0,0.00014196,2]
[404295439,1770042641256,-6554.55116352,0.0001439,2]
[404295440,1770042641265,-2554.65451949,0.00014461,2]
[404295441,1770042641275,-21608.85344204,0.00014461,2]
[404295442,1770042641284,-1000.0,0.00014521,2]
[404295443,1770042641293,-1014.69284431,0.00014521,2]
[404295444,1770042641302,-508.73137524,0.00014521,2]
[404295445,1770042641311,-179.5507367,0.000149,2]
[404295446,1770042641321,-250.0,0.00015,2]
[404295447,1770042641330,-1500.0,0.00015068,2]
[404295448,1770042641339,-999.58852035,0.00015129,2]
[404295449,1770042641348,-2637.92992025,0.00015129,2]
[404295450,1770042641358,-4653.62106315,0.00015129,2]
[404295451,1770042641368,-2554.65451949,0.00015149,2]
[404295452,1770042641377,-21608.85344204,0.00015149,2]
[404295453,1770042641386,-500.0,0.00015151,2]
[404295454,1770042641395,-25228.24,0.00015176,2]
[404295455,1770042641405,-500.0,0.00015233,2]
[404295456,1770042641414,-500.0,0.00015473,2]
[404295457,1770042641423,-500.0,0.00015473,2]
[404295458,1770042641432,-501.68536334,0.00015473,2]
[404295459,1770042641442,-500.0,0.00015473,2]
[404295460,1770042641451,-500.0,0.00015473,2]
[404295461,1770042641460,-500.0,0.00015473,2]
[404295462,1770042641469,-500.0,0.00015473,2]
[404295463,1770042641478,-500.0,0.00015473,2]
[404295464,1770042641490,-506.18335719,0.00015473,2]
[404295465,1770042641499,-500.0,0.00015473,2]
[404295466,1770042641508,-500.0,0.00015473,2]